[Event "Titled Tuesday Blitz September 28 2021"]
[White "Lukovic, Vladimir"]
[Black "Drozdowski, Kacper"]
[WhiteFideId "942952"]
[BlackFideId "1136720"]
[WhiteElo "2436"]
[BlackElo "2507"]
[Result "1/2-1/2"]
[Round "10"]
[TimeControl "180+1"]
[Date "2021.09.28"]
[WhiteClock "0:00:06"]
[BlackClock "0:00:18"]

1. e4 {[%clk 0:03:00]}  c5 {[%clk 0:03:00]} 2. Nf3 {[%clk 0:03:00]}  e6 {[%clk 0:03:00]} 3. d4 {[%clk 0:02:59]}  cxd4 {[%clk 0:03:01]} 4. Nxd4 {[%clk 0:02:59]}  a6 {[%clk 0:03:02]} 5. Bd3 {[%clk 0:02:59]}  Nf6 {[%clk 0:03:02]} 6. O-O {[%clk 0:02:58]}  d6 {[%clk 0:03:02]} 7. c4 {[%clk 0:02:56]}  Nbd7 {[%clk 0:03:03]} 8. Nc3 {[%clk 0:02:56]}  g6 {[%clk 0:03:03]} 9. Qe2 {[%clk 0:02:46]}  Bg7 {[%clk 0:03:03]} 10. Rd1 {[%clk 0:02:37]}  O-O {[%clk 0:03:04]} 11. Nf3 {[%clk 0:02:35]}  Qc7 {[%clk 0:03:04]} 12. Bf4 {[%clk 0:02:31]}  Ng4 {[%clk 0:03:03]} 13. Rac1 {[%clk 0:02:21]}  Nge5 {[%clk 0:03:03]} 14. Nxe5 {[%clk 0:02:20]}  Nxe5 {[%clk 0:03:04]} 15. Qe3 {[%clk 0:02:08]}  b6 {[%clk 0:03:01]} 16. Be2 {[%clk 0:01:57]}  Rb8 {[%clk 0:02:54]} 17. Bh6 {[%clk 0:01:55]}  Bb7 {[%clk 0:02:47]} 18. Bxg7 {[%clk 0:01:55]}  Kxg7 {[%clk 0:02:48]} 19. Qd4 {[%clk 0:01:53]}  Qc5 {[%clk 0:02:39]} 20. Qxd6 {[%clk 0:01:49]}  Rfd8 {[%clk 0:02:38]} 21. Qxc5 {[%clk 0:01:47]}  bxc5 {[%clk 0:02:39]} 22. f4 {[%clk 0:01:37]}  Nc6 {[%clk 0:02:39]} 23. Rxd8 {[%clk 0:01:36]}  Rxd8 {[%clk 0:02:39]} 24. Rd1 {[%clk 0:01:36]}  Nd4 {[%clk 0:02:39]} 25. Kf2 {[%clk 0:01:36]}  Bc6 {[%clk 0:02:38]} 26. Bf3 {[%clk 0:01:25]}  Rb8 {[%clk 0:02:37]} 27. b3 {[%clk 0:01:25]}  e5 {[%clk 0:02:13]} 28. fxe5 {[%clk 0:01:22]}  Re8 {[%clk 0:02:13]} 29. Ne2 {[%clk 0:01:22]}  Nxe2 {[%clk 0:02:09]} 30. Kxe2 {[%clk 0:01:20]}  Rxe5 {[%clk 0:02:10]} 31. Kd3 {[%clk 0:01:20]}  Kf6 {[%clk 0:02:07]} 32. a3 {[%clk 0:01:07]}  a5 {[%clk 0:02:06]} 33. Ke3 {[%clk 0:00:56]}  Ke7 {[%clk 0:02:02]} 34. g4 {[%clk 0:00:53]}  Re6 {[%clk 0:01:54]} 35. g5 {[%clk 0:00:51]}  f6 {[%clk 0:01:51]} 36. gxf6+ {[%clk 0:00:49]}  Rxf6 {[%clk 0:01:51]} 37. b4 {[%clk 0:00:41]}  axb4 {[%clk 0:01:51]} 38. axb4 {[%clk 0:00:41]}  cxb4 {[%clk 0:01:51]} 39. Rb1 {[%clk 0:00:42]}  Kd6 {[%clk 0:01:46]} 40. Rxb4 {[%clk 0:00:38]}  Kc5 {[%clk 0:01:45]} 41. Rb1 {[%clk 0:00:35]}  Rf8 {[%clk 0:01:45]} 42. Rd1 {[%clk 0:00:32]}  g5 {[%clk 0:01:44]} 43. Bg4 {[%clk 0:00:29]}  Rf4 {[%clk 0:01:42]} 44. Bf5 {[%clk 0:00:29]}  Rh4 {[%clk 0:01:42]} 45. h3 {[%clk 0:00:28]}  h5 {[%clk 0:01:40]} 46. Rg1 {[%clk 0:00:28]}  g4 {[%clk 0:01:36]} 47. hxg4 {[%clk 0:00:28]}  hxg4 {[%clk 0:01:35]} 48. Kf4 {[%clk 0:00:26]}  Kxc4 {[%clk 0:01:31]} 49. Kg5 {[%clk 0:00:25]}  Rh8 {[%clk 0:01:30]} 50. Rc1+ {[%clk 0:00:25]}  Kb5 {[%clk 0:01:29]} 51. Kxg4 {[%clk 0:00:25]}  Kb6 {[%clk 0:01:23]} 52. e5 {[%clk 0:00:25]}  Rh2 {[%clk 0:01:19]} 53. e6 {[%clk 0:00:24]}  Re2 {[%clk 0:01:18]} 54. Kg5 {[%clk 0:00:23]}  Bd5 {[%clk 0:01:13]} 55. Kf6 {[%clk 0:00:23]}  Bxe6 {[%clk 0:01:13]} 56. Bxe6 {[%clk 0:00:23]}  Rf2+ {[%clk 0:01:13]} 57. Ke5 {[%clk 0:00:23]}  Rd2 {[%clk 0:01:04]} 58. Bd5 {[%clk 0:00:23]}  Kb5 {[%clk 0:01:05]} 59. Kd6 {[%clk 0:00:22]}  Kb4 {[%clk 0:01:05]} 60. Rb1+ {[%clk 0:00:21]}  Kc3 {[%clk 0:01:04]} 61. Kc5 {[%clk 0:00:22]}  Rb2 {[%clk 0:01:03]} 62. Rg1 {[%clk 0:00:21]}  Rd2 {[%clk 0:01:03]} 63. Rg3+ {[%clk 0:00:21]}  Rd3 {[%clk 0:01:03]} 64. Rg2 {[%clk 0:00:21]}  Rd2 {[%clk 0:01:03]} 65. Rg8 {[%clk 0:00:21]}  Rd1 {[%clk 0:01:02]} 66. Ra8 {[%clk 0:00:21]}  Rc1 {[%clk 0:00:59]} 67. Bc4 {[%clk 0:00:19]}  Kd2 {[%clk 0:00:59]} 68. Ra3 {[%clk 0:00:18]}  Rc3 {[%clk 0:00:58]} 69. Ra7 {[%clk 0:00:15]}  Re3 {[%clk 0:00:55]} 70. Kd4 {[%clk 0:00:14]}  Rc3 {[%clk 0:00:52]} 71. Ra2+ {[%clk 0:00:14]}  Rc2 {[%clk 0:00:52]} 72. Ra3 {[%clk 0:00:14]}  Rb2 {[%clk 0:00:50]} 73. Rh3 {[%clk 0:00:14]}  Rc2 {[%clk 0:00:43]} 74. Rh1 {[%clk 0:00:14]}  Rb2 {[%clk 0:00:42]} 75. Rh2+ {[%clk 0:00:14]}  Kc1 {[%clk 0:00:42]} 76. Rh3 {[%clk 0:00:13]}  Kd2 {[%clk 0:00:42]} 77. Re3 {[%clk 0:00:13]}  Rb8 {[%clk 0:00:38]} 78. Re2+ {[%clk 0:00:13]}  Kd1 {[%clk 0:00:37]} 79. Rg2 {[%clk 0:00:14]}  Ke1 {[%clk 0:00:27]} 80. Bd5 {[%clk 0:00:12]}  Kf1 {[%clk 0:00:24]} 81. Ra2 {[%clk 0:00:12]}  Rd8 {[%clk 0:00:24]} 82. Rb2 {[%clk 0:00:10]}  Rd7 {[%clk 0:00:23]} 83. Ke5 {[%clk 0:00:10]}  Rd8 {[%clk 0:00:23]} 84. Be4 {[%clk 0:00:10]}  Ke1 {[%clk 0:00:24]} 85. Kf4 {[%clk 0:00:11]}  Kd1 {[%clk 0:00:23]} 86. Ke3 {[%clk 0:00:11]}  Rc8 {[%clk 0:00:18]} 87. Rb1+ {[%clk 0:00:03]}  Rc1 {[%clk 0:00:17]} 88. Bf3+ {[%clk 0:00:03]}  Kc2 {[%clk 0:00:17]} 89. Be4+ {[%clk 0:00:04]}  Kd1 {[%clk 0:00:18]} 90. Rb2 {[%clk 0:00:05]}  Rc8 {[%clk 0:00:18]} 91. Kd3 {[%clk 0:00:05]}  Rd8+ {[%clk 0:00:17]} 92. Ke3 {[%clk 0:00:06]}  Rc8 {[%clk 0:00:18]} 1/2-1/2


[Site "https://www.chess.com"]

[Event "Titled Tuesday Blitz September 28 2021"]
[White "Maly, Alexey"]
[Black "Saravana, Krishnan P."]
[WhiteFideId "14103184"]
[BlackFideId "5018382"]
[WhiteElo "2250"]
[BlackElo "2245"]
[Result "1-0"]
[Round "10"]
[TimeControl "180+1"]
[Date "2021.09.28"]
[WhiteClock "0:00:16"]
[BlackClock "0:00:05"]

1. d4 {[%clk 0:03:00]}  Nf6 {[%clk 0:02:59]} 2. c4 {[%clk 0:03:01]}  g6 {[%clk 0:02:59]} 3. Nc3 {[%clk 0:03:00]}  Bg7 {[%clk 0:02:57]} 4. e4 {[%clk 0:03:00]}  d6 {[%clk 0:02:57]} 5. Be2 {[%clk 0:03:01]}  O-O {[%clk 0:02:58]} 6. Nf3 {[%clk 0:03:01]}  e5 {[%clk 0:02:58]} 7. O-O {[%clk 0:03:01]}  Bg4 {[%clk 0:02:56]} 8. d5 {[%clk 0:03:00]}  Bxf3 {[%clk 0:02:54]} 9. Bxf3 {[%clk 0:03:01]}  a5 {[%clk 0:02:54]} 10. g3 {[%clk 0:02:59]}  Na6 {[%clk 0:02:54]} 11. Bg2 {[%clk 0:02:59]}  Nc5 {[%clk 0:02:54]} 12. Qc2 {[%clk 0:02:58]}  Nfd7 {[%clk 0:02:51]} 13. Bd2 {[%clk 0:02:57]}  f5 {[%clk 0:02:51]} 14. f4 {[%clk 0:02:57]}  exf4 {[%clk 0:02:50]} 15. Bxf4 {[%clk 0:02:56]}  Ne5 {[%clk 0:02:48]} 16. Rad1 {[%clk 0:02:47]}  Nxc4 {[%clk 0:02:41]} 17. exf5 {[%clk 0:02:30]}  gxf5 {[%clk 0:02:39]} 18. Bh3 {[%clk 0:02:20]}  Qf6 {[%clk 0:02:33]} 19. Bc1 {[%clk 0:01:43]}  Kh8 {[%clk 0:01:58]} 20. Rxf5 {[%clk 0:01:32]}  Qg6 {[%clk 0:01:51]} 21. Rdf1 {[%clk 0:01:29]}  Ne5 {[%clk 0:01:35]} 22. Ne4 {[%clk 0:01:12]}  Ned3 {[%clk 0:01:24]} 23. Nxc5 {[%clk 0:01:09]}  Nxc5 {[%clk 0:01:20]} 24. Rxf8+ {[%clk 0:01:01]}  Rxf8 {[%clk 0:01:20]} 25. Rxf8+ {[%clk 0:01:00]}  Bxf8 {[%clk 0:01:19]} 26. Bf5 {[%clk 0:00:54]}  Qf6 {[%clk 0:01:12]} 27. b4 {[%clk 0:00:43]}  Qd4+ {[%clk 0:00:59]} 28. Kf1 {[%clk 0:00:33]}  Qxb4 {[%clk 0:00:59]} 29. Qe2 {[%clk 0:00:26]}  Na4 {[%clk 0:00:35]} 30. Bg5 {[%clk 0:00:18]}  Qc3 {[%clk 0:00:29]} 31. Qe6 {[%clk 0:00:17]}  Qa1+ {[%clk 0:00:20]} 32. Kg2 {[%clk 0:00:17]}  Qb2+ {[%clk 0:00:05]} 33. Kh3 {[%clk 0:00:16]} 1-0


[Site "https://www.chess.com"]

[Event "Titled Tuesday Blitz September 28 2021"]
[White "Mirzanurov, Bulat"]
[Black "Tasev, Dejan"]
[WhiteFideId "4184521"]
[BlackFideId "936618"]
[WhiteElo "2180"]
[BlackElo "2253"]
[Result "1/2-1/2"]
[Round "10"]
[TimeControl "180+1"]
[Date "2021.09.28"]
[WhiteClock "0:00:03"]
[BlackClock "0:00:20"]

1. e4 {[%clk 0:03:00]}  c6 {[%clk 0:02:59]} 2. d4 {[%clk 0:02:57]}  d5 {[%clk 0:02:59]} 3. exd5 {[%clk 0:02:58]}  cxd5 {[%clk 0:02:58]} 4. Bd3 {[%clk 0:02:47]}  Nc6 {[%clk 0:02:57]} 5. c3 {[%clk 0:02:47]}  g6 {[%clk 0:02:56]} 6. Qc2 {[%clk 0:02:37]}  Bg7 {[%clk 0:02:53]} 7. Nf3 {[%clk 0:02:33]}  Bg4 {[%clk 0:02:45]} 8. Nbd2 {[%clk 0:02:32]}  Bxf3 {[%clk 0:02:42]} 9. Nxf3 {[%clk 0:02:33]}  e6 {[%clk 0:02:42]} 10. O-O {[%clk 0:02:18]}  Nge7 {[%clk 0:02:37]} 11. Bf4 {[%clk 0:02:17]}  h6 {[%clk 0:02:35]} 12. h4 {[%clk 0:02:16]}  O-O {[%clk 0:02:31]} 13. Rfe1 {[%clk 0:01:51]}  Rc8 {[%clk 0:02:29]} 14. Qd2 {[%clk 0:01:51]}  h5 {[%clk 0:02:22]} 15. Bh6 {[%clk 0:01:50]}  Na5 {[%clk 0:02:09]} 16. Ne5 {[%clk 0:01:18]}  Nc4 {[%clk 0:02:03]} 17. Bxc4 {[%clk 0:01:15]}  dxc4 {[%clk 0:02:00]} 18. Bxg7 {[%clk 0:01:15]}  Kxg7 {[%clk 0:01:59]} 19. g3 {[%clk 0:01:04]}  Nd5 {[%clk 0:01:52]} 20. Qe2 {[%clk 0:01:00]}  Qc7 {[%clk 0:01:32]} 21. Rac1 {[%clk 0:00:39]}  b5 {[%clk 0:01:29]} 22. Nf3 {[%clk 0:00:25]}  a5 {[%clk 0:01:20]} 23. Ng5 {[%clk 0:00:20]}  Nf6 {[%clk 0:01:09]} 24. Qe5 {[%clk 0:00:15]}  Qxe5 {[%clk 0:01:04]} 25. dxe5 {[%clk 0:00:16]}  Nd5 {[%clk 0:01:03]} 26. Ne4 {[%clk 0:00:15]}  Rb8 {[%clk 0:01:03]} 27. Nd6 {[%clk 0:00:13]}  Rfd8 {[%clk 0:00:52]} 28. f4 {[%clk 0:00:13]}  Rd7 {[%clk 0:00:50]} 29. b3 {[%clk 0:00:13]}  cxb3 {[%clk 0:00:48]} 30. axb3 {[%clk 0:00:14]}  Rc7 {[%clk 0:00:48]} 31. c4 {[%clk 0:00:13]}  bxc4 {[%clk 0:00:48]} 32. bxc4 {[%clk 0:00:14]}  Ne7 {[%clk 0:00:44]} 33. Rb1 {[%clk 0:00:10]}  Ra8 {[%clk 0:00:40]} 34. Red1 {[%clk 0:00:07]}  a4 {[%clk 0:00:39]} 35. Ra1 {[%clk 0:00:07]}  Nf5 {[%clk 0:00:37]} 36. Rd3 {[%clk 0:00:07]}  Kf8 {[%clk 0:00:31]} 37. Rda3 {[%clk 0:00:03]}  Nxd6 {[%clk 0:00:30]} 38. exd6 {[%clk 0:00:03]}  Rxc4 {[%clk 0:00:30]} 39. Rd3 {[%clk 0:00:04]}  Ke8 {[%clk 0:00:30]} 40. Kf2 {[%clk 0:00:04]}  Kd7 {[%clk 0:00:30]} 41. Kf3 {[%clk 0:00:04]}  Ra6 {[%clk 0:00:30]} 42. Rb1 {[%clk 0:00:05]}  Ra7 {[%clk 0:00:29]} 43. g4 {[%clk 0:00:03]}  hxg4+ {[%clk 0:00:29]} 44. Kxg4 {[%clk 0:00:04]}  a3 {[%clk 0:00:28]} 45. Ra1 {[%clk 0:00:04]}  a2 {[%clk 0:00:28]} 46. Rd2 {[%clk 0:00:04]}  Rca4 {[%clk 0:00:28]} 47. Kg5 {[%clk 0:00:02]}  R4a5+ {[%clk 0:00:26]} 48. Kh6 {[%clk 0:00:02]}  Rd5 {[%clk 0:00:23]} 49. Rdxa2 {[%clk 0:00:01]}  Rxa2 {[%clk 0:00:23]} 50. Rxa2 {[%clk 0:00:02]}  Kxd6 {[%clk 0:00:23]} 51. Kg7 {[%clk 0:00:03]}  Rf5 {[%clk 0:00:23]} 52. Rd2+ {[%clk 0:00:03]}  Ke7 {[%clk 0:00:23]} 53. Rf2 {[%clk 0:00:01]}  Rh5 {[%clk 0:00:22]} 54. Rh2 {[%clk 0:00:01]}  Rf5 {[%clk 0:00:23]} 55. Rf2 {[%clk 0:00:02]}  e5 {[%clk 0:00:23]} 56. Re2 {[%clk 0:00:02]}  Ke6 {[%clk 0:00:21]} 57. fxe5 {[%clk 0:00:02]}  Rxe5 {[%clk 0:00:20]} 58. Rxe5+ {[%clk 0:00:01]}  Kxe5 {[%clk 0:00:20]} 59. Kxf7 {[%clk 0:00:02]}  Kf5 {[%clk 0:00:20]} 60. Kg7 {[%clk 0:00:03]}  g5 {[%clk 0:00:20]} 61. hxg5 {[%clk 0:00:03]}  Kxg5 {[%clk 0:00:20]} 1/2-1/2


[Site "https://www.chess.com"]

[Event "Titled Tuesday Blitz September 28 2021"]
[White "Navalgund, Niranjan"]
[Black "Noboa Silva, Kevin"]
[WhiteFideId "5030854"]
[BlackFideId "3618471"]
[WhiteElo "2290"]
[BlackElo "2161"]
[Result "1-0"]
[Round "10"]
[TimeControl "180+1"]
[Date "2021.09.28"]
[WhiteClock "0:00:15"]
[BlackClock "0:00:02"]

1. e4 {[%clk 0:02:16]}  e6 {[%clk 0:02:31]} 2. g3 {[%clk 0:02:10]}  d5 {[%clk 0:02:26]} 3. Bg2 {[%clk 0:02:10]}  Nf6 {[%clk 0:02:22]} 4. Nc3 {[%clk 0:02:09]}  Be7 {[%clk 0:02:21]} 5. d4 {[%clk 0:02:08]}  O-O {[%clk 0:02:19]} 6. Nge2 {[%clk 0:02:08]}  b6 {[%clk 0:02:06]} 7. exd5 {[%clk 0:02:05]}  exd5 {[%clk 0:02:06]} 8. O-O {[%clk 0:02:06]}  c6 {[%clk 0:02:02]} 9. Re1 {[%clk 0:01:57]}  Bf5 {[%clk 0:02:00]} 10. h3 {[%clk 0:01:55]}  Re8 {[%clk 0:01:55]} 11. g4 {[%clk 0:01:55]}  Bg6 {[%clk 0:01:43]} 12. Ng3 {[%clk 0:01:35]}  Na6 {[%clk 0:01:32]} 13. Bf4 {[%clk 0:01:17]}  Bd6 {[%clk 0:01:26]} 14. Bg5 {[%clk 0:01:14]}  Bxg3 {[%clk 0:01:22]} 15. fxg3 {[%clk 0:01:14]}  Qd6 {[%clk 0:01:20]} 16. Kh2 {[%clk 0:01:07]}  Rxe1 {[%clk 0:01:13]} 17. Qxe1 {[%clk 0:01:06]}  Re8 {[%clk 0:01:14]} 18. Qd2 {[%clk 0:01:05]}  Ne4 {[%clk 0:01:10]} 19. Nxe4 {[%clk 0:01:00]}  Bxe4 {[%clk 0:01:06]} 20. Re1 {[%clk 0:01:00]}  c5 {[%clk 0:00:45]} 21. dxc5 {[%clk 0:00:50]}  Nxc5 {[%clk 0:00:38]} 22. b4 {[%clk 0:00:48]}  Nb7 {[%clk 0:00:31]} 23. Bxe4 {[%clk 0:00:47]}  dxe4 {[%clk 0:00:29]} 24. Qe3 {[%clk 0:00:35]}  Qxb4 {[%clk 0:00:20]} 25. Rd1 {[%clk 0:00:35]}  h6 {[%clk 0:00:19]} 26. Bf4 {[%clk 0:00:35]}  Nc5 {[%clk 0:00:18]} 27. h4 {[%clk 0:00:33]}  Ne6 {[%clk 0:00:18]} 28. Be5 {[%clk 0:00:30]}  Qc5 {[%clk 0:00:16]} 29. Qxc5 {[%clk 0:00:27]}  Nxc5 {[%clk 0:00:16]} 30. Bd4 {[%clk 0:00:27]}  Rd8 {[%clk 0:00:15]} 31. c3 {[%clk 0:00:26]}  e3 {[%clk 0:00:11]} 32. Kg2 {[%clk 0:00:26]}  e2 {[%clk 0:00:10]} 33. Re1 {[%clk 0:00:25]}  Ne6 {[%clk 0:00:10]} 34. Rxe2 {[%clk 0:00:24]}  Nxd4 {[%clk 0:00:10]} 35. cxd4 {[%clk 0:00:25]}  Rxd4 {[%clk 0:00:11]} 36. Re7 {[%clk 0:00:25]}  Kh7 {[%clk 0:00:11]} 37. Rxf7 {[%clk 0:00:25]}  Rd2+ {[%clk 0:00:11]} 38. Kh3 {[%clk 0:00:25]}  Rxa2 {[%clk 0:00:12]} 39. h5 {[%clk 0:00:24]}  a5 {[%clk 0:00:10]} 40. Rb7 {[%clk 0:00:24]}  Rb2 {[%clk 0:00:10]} 41. g5 {[%clk 0:00:24]}  hxg5 {[%clk 0:00:10]} 42. Kg4 {[%clk 0:00:25]}  Kh6 {[%clk 0:00:09]} 43. Rb8 {[%clk 0:00:24]}  Rb4+ {[%clk 0:00:09]} 44. Kf5 {[%clk 0:00:20]}  Rb5+ {[%clk 0:00:09]} 45. Kg4 {[%clk 0:00:21]}  Kh7 {[%clk 0:00:09]} 46. Ra8 {[%clk 0:00:20]}  Rc5 {[%clk 0:00:09]} 47. Ra7 {[%clk 0:00:19]}  Kh6 {[%clk 0:00:08]} 48. Ra8 {[%clk 0:00:20]}  Rc4+ {[%clk 0:00:08]} 49. Kf5 {[%clk 0:00:20]}  Rc5+ {[%clk 0:00:08]} 50. Kg4 {[%clk 0:00:20]}  Kh7 {[%clk 0:00:09]} 51. Ra6 {[%clk 0:00:19]}  Rb5 {[%clk 0:00:05]} 52. Ra7 {[%clk 0:00:19]}  Rd5 {[%clk 0:00:04]} 53. Ra6 {[%clk 0:00:17]}  Kg8 {[%clk 0:00:04]} 54. Rxb6 {[%clk 0:00:17]}  a4 {[%clk 0:00:03]} 55. Ra6 {[%clk 0:00:18]}  Rd4+ {[%clk 0:00:02]} 56. Kxg5 {[%clk 0:00:18]}  Kh7 {[%clk 0:00:03]} 57. Ra7 {[%clk 0:00:17]}  Rb4 {[%clk 0:00:02]} 58. g4 {[%clk 0:00:15]}  Rc4 {[%clk 0:00:03]} 59. Kh4 {[%clk 0:00:15]}  Rb4 {[%clk 0:00:03]} 60. Ra8 {[%clk 0:00:15]}  Rc4 {[%clk 0:00:02]} 61. Kg3 {[%clk 0:00:15]}  Rb4 {[%clk 0:00:02]} 62. g5 {[%clk 0:00:15]} 1-0


[Site "https://www.chess.com"]

[Event "Titled Tuesday Blitz September 28 2021"]
[White "Nazaretyan, Tigran"]
[Black "Nesterov, Arseniy"]
[WhiteFideId "24162345"]
[BlackFideId "24198455"]
[WhiteElo "2212"]
[BlackElo "2494"]
[Result "1-0"]
[Round "10"]
[TimeControl "180+1"]
[Date "2021.09.28"]
[WhiteClock "0:00:31"]
[BlackClock "0:00:10"]

1. d4 {[%clk 0:03:00]}  d5 {[%clk 0:02:46]} 2. c4 {[%clk 0:03:00]}  c6 {[%clk 0:02:46]} 3. Nf3 {[%clk 0:03:00]}  Nf6 {[%clk 0:02:46]} 4. Nc3 {[%clk 0:03:00]}  dxc4 {[%clk 0:02:46]} 5. a4 {[%clk 0:03:00]}  a5 {[%clk 0:02:46]} 6. e4 {[%clk 0:02:55]}  Bg4 {[%clk 0:02:46]} 7. Be3 {[%clk 0:02:53]}  e6 {[%clk 0:02:47]} 8. Bxc4 {[%clk 0:02:52]}  Bb4 {[%clk 0:02:47]} 9. Qc2 {[%clk 0:02:52]}  Bxf3 {[%clk 0:02:46]} 10. gxf3 {[%clk 0:02:52]}  O-O {[%clk 0:02:47]} 11. h4 {[%clk 0:02:49]}  Nbd7 {[%clk 0:02:45]} 12. h5 {[%clk 0:02:49]}  e5 {[%clk 0:02:40]} 13. h6 {[%clk 0:02:46]}  g6 {[%clk 0:02:39]} 14. O-O-O {[%clk 0:02:45]}  Qe7 {[%clk 0:02:27]} 15. Bg5 {[%clk 0:02:42]}  exd4 {[%clk 0:02:25]} 16. Rxd4 {[%clk 0:02:39]}  Qe5 {[%clk 0:02:25]} 17. Qd2 {[%clk 0:02:35]}  Bc5 {[%clk 0:02:05]} 18. Rd3 {[%clk 0:02:25]}  Be7 {[%clk 0:01:49]} 19. f4 {[%clk 0:02:19]}  Qc5 {[%clk 0:01:45]} 20. b3 {[%clk 0:02:09]}  Nb6 {[%clk 0:01:31]} 21. e5 {[%clk 0:01:52]}  Nxc4 {[%clk 0:00:47]} 22. bxc4 {[%clk 0:01:50]}  Nh5 {[%clk 0:00:42]} 23. Bxe7 {[%clk 0:01:40]}  Qxe7 {[%clk 0:00:43]} 24. Ne4 {[%clk 0:01:25]}  f6 {[%clk 0:00:17]} 25. Rxh5 {[%clk 0:01:19]}  gxh5 {[%clk 0:00:16]} 26. Nxf6+ {[%clk 0:01:01]}  Rxf6 {[%clk 0:00:16]} 27. exf6 {[%clk 0:01:01]}  Qxf6 {[%clk 0:00:17]} 28. Rg3+ {[%clk 0:00:56]}  Kf8 {[%clk 0:00:17]} 29. Qc3 {[%clk 0:00:35]}  Qxc3+ {[%clk 0:00:11]} 30. Rxc3 {[%clk 0:00:35]}  Re8 {[%clk 0:00:11]} 31. Rg3 {[%clk 0:00:31]}  Re6 {[%clk 0:00:10]} 32. Rg7 {[%clk 0:00:29]}  Rxh6 {[%clk 0:00:10]} 33. Rxb7 {[%clk 0:00:29]}  h4 {[%clk 0:00:10]} 34. Kd2 {[%clk 0:00:28]}  h3 {[%clk 0:00:11]} 35. Rb1 {[%clk 0:00:29]}  h2 {[%clk 0:00:11]} 36. Rh1 {[%clk 0:00:29]}  Rh3 {[%clk 0:00:11]} 37. Ke2 {[%clk 0:00:28]}  Kf7 {[%clk 0:00:11]} 38. Kf1 {[%clk 0:00:26]}  Kf6 {[%clk 0:00:10]} 39. Kg2 {[%clk 0:00:27]}  Rh6 {[%clk 0:00:10]} 40. Rxh2 {[%clk 0:00:27]}  Rxh2+ {[%clk 0:00:07]} 41. Kxh2 {[%clk 0:00:28]}  Kf5 {[%clk 0:00:07]} 42. Kg3 {[%clk 0:00:28]}  h6 {[%clk 0:00:04]} 43. c5 {[%clk 0:00:26]}  h5 {[%clk 0:00:03]} 44. Kh4 {[%clk 0:00:26]}  Kxf4 {[%clk 0:00:04]} 45. Kxh5 {[%clk 0:00:27]}  Kf5 {[%clk 0:00:03]} 46. Kh6 {[%clk 0:00:27]}  Kf6 {[%clk 0:00:03]} 47. Kh7 {[%clk 0:00:27]}  Kf5 {[%clk 0:00:03]} 48. Kg7 {[%clk 0:00:28]}  Ke5 {[%clk 0:00:04]} 49. Kg6 {[%clk 0:00:27]}  Kd5 {[%clk 0:00:03]} 50. f4 {[%clk 0:00:27]}  Kxc5 {[%clk 0:00:04]} 51. f5 {[%clk 0:00:28]}  Kb4 {[%clk 0:00:04]} 52. f6 {[%clk 0:00:28]}  c5 {[%clk 0:00:05]} 53. f7 {[%clk 0:00:29]}  Kxa4 {[%clk 0:00:06]} 54. f8=Q {[%clk 0:00:30]}  c4 {[%clk 0:00:07]} 55. Qc5 {[%clk 0:00:29]}  Kb3 {[%clk 0:00:07]} 56. Qb5+ {[%clk 0:00:30]}  Kc3 {[%clk 0:00:08]} 57. Qxa5+ {[%clk 0:00:30]}  Kd3 {[%clk 0:00:09]} 58. Qd5+ {[%clk 0:00:30]}  Kc3 {[%clk 0:00:10]} 59. Kf5 {[%clk 0:00:31]} 1-0


[Site "https://www.chess.com"]

[Event "Titled Tuesday Blitz September 28 2021"]
[White "Novikova, Galina"]
[Black "Sieciechowicz, Marcin"]
[WhiteFideId "4157095"]
[BlackFideId "1130170"]
[WhiteElo "1844"]
[BlackElo "2318"]
[Result "0-1"]
[Round "10"]
[TimeControl "180+1"]
[Date "2021.09.28"]
[WhiteClock "0:00:02"]
[BlackClock "0:00:10"]

1. e4 {[%clk 0:03:00]}  c5 {[%clk 0:02:57]} 2. Nf3 {[%clk 0:03:00]}  d6 {[%clk 0:02:56]} 3. d4 {[%clk 0:03:00]}  cxd4 {[%clk 0:02:57]} 4. Nxd4 {[%clk 0:03:01]}  Nf6 {[%clk 0:02:56]} 5. Nc3 {[%clk 0:03:01]}  a6 {[%clk 0:02:56]} 6. h3 {[%clk 0:03:02]}  e6 {[%clk 0:02:56]} 7. g4 {[%clk 0:03:02]}  d5 {[%clk 0:02:56]} 8. exd5 {[%clk 0:02:58]}  Nxd5 {[%clk 0:02:56]} 9. Bg2 {[%clk 0:02:56]}  Bb4 {[%clk 0:02:55]} 10. Bd2 {[%clk 0:02:55]}  Nxc3 {[%clk 0:02:44]} 11. Bxc3 {[%clk 0:02:35]}  Bxc3+ {[%clk 0:02:43]} 12. bxc3 {[%clk 0:02:35]}  O-O {[%clk 0:02:43]} 13. O-O {[%clk 0:02:35]}  Qc7 {[%clk 0:02:40]} 14. Qf3 {[%clk 0:02:04]}  e5 {[%clk 0:02:34]} 15. Nf5 {[%clk 0:01:55]}  Nc6 {[%clk 0:02:31]} 16. Rfe1 {[%clk 0:01:40]}  Be6 {[%clk 0:02:31]} 17. Qg3 {[%clk 0:01:22]}  Bxf5 {[%clk 0:02:20]} 18. gxf5 {[%clk 0:01:22]}  f6 {[%clk 0:02:18]} 19. Bd5+ {[%clk 0:01:16]}  Kh8 {[%clk 0:02:18]} 20. Kh2 {[%clk 0:01:10]}  Rad8 {[%clk 0:02:12]} 21. Rad1 {[%clk 0:01:06]}  Ne7 {[%clk 0:02:04]} 22. Be6 {[%clk 0:01:05]}  Rxd1 {[%clk 0:02:04]} 23. Rxd1 {[%clk 0:01:06]}  Rd8 {[%clk 0:02:04]} 24. Rg1 {[%clk 0:01:03]}  Nd5 {[%clk 0:02:01]} 25. c4 {[%clk 0:00:57]}  Nf4 {[%clk 0:02:00]} 26. h4 {[%clk 0:00:42]}  Rd6 {[%clk 0:01:43]} 27. Qg4 {[%clk 0:00:38]}  Qe7 {[%clk 0:01:38]} 28. h5 {[%clk 0:00:37]}  Nxe6 {[%clk 0:01:36]} 29. fxe6 {[%clk 0:00:36]}  Rxe6 {[%clk 0:01:36]} 30. h6 {[%clk 0:00:33]}  g6 {[%clk 0:01:36]} 31. Rd1 {[%clk 0:00:30]}  f5 {[%clk 0:01:36]} 32. Qg3 {[%clk 0:00:20]}  Rd6 {[%clk 0:01:29]} 33. Re1 {[%clk 0:00:19]}  e4 {[%clk 0:01:24]} 34. c5 {[%clk 0:00:16]}  Rd8 {[%clk 0:01:15]} 35. Rb1 {[%clk 0:00:10]}  Qxc5 {[%clk 0:00:33]} 36. Rxb7 {[%clk 0:00:08]}  g5 {[%clk 0:00:16]} 37. Rc7 {[%clk 0:00:02]}  Qd4 {[%clk 0:00:10]} 0-1


[Site "https://www.chess.com"]